[Event "Titled Tuesday Blitz February 14 Early 2023"]
[White "Koellner, Ruben Gideon"]
[Black "Szente Varga, Fruzsina"]
[WhiteFideId "12993093"]
[BlackFideId "712264"]
[WhiteElo "2426"]
[BlackElo "2075"]
[Result "0-1"]
[Round "01"]
[TimeControl "180+2"]
[Date "2023.02.15"]
[WhiteClock "0:00:01"]
[BlackClock "0:00:11"]

1. d4 {[%clk 0:02:55]}  Nf6 {[%clk 0:03:00]} 2. Nf3 {[%clk 0:02:43]}  g6 {[%clk 0:02:59]} 3. Nbd2 {[%clk 0:02:40]}  d5 {[%clk 0:02:58]} 4. e3 {[%clk 0:02:40]}  Bg7 {[%clk 0:02:58]} 5. b4 {[%clk 0:02:39]}  O-O {[%clk 0:02:59]} 6. c4 {[%clk 0:02:39]}  c6 {[%clk 0:02:55]} 7. Bb2 {[%clk 0:02:39]}  Ne4 {[%clk 0:02:44]} 8. Nxe4 {[%clk 0:02:38]}  dxe4 {[%clk 0:02:45]} 9. Nd2 {[%clk 0:02:39]}  f5 {[%clk 0:02:44]} 10. Be2 {[%clk 0:02:35]}  Kh8 {[%clk 0:02:35]} 11. h4 {[%clk 0:02:34]}  h5 {[%clk 0:02:26]} 12. g3 {[%clk 0:02:23]}  Nd7 {[%clk 0:01:37]} 13. Qb3 {[%clk 0:02:20]}  Qc7 {[%clk 0:01:17]} 14. c5 {[%clk 0:01:33]}  Nf6 {[%clk 0:01:09]} 15. Bc4 {[%clk 0:01:16]}  Qd7 {[%clk 0:00:59]} 16. b5 {[%clk 0:00:54]}  Rd8 {[%clk 0:00:24]} 17. a4 {[%clk 0:00:44]}  e5 {[%clk 0:00:20]} 18. Rd1 {[%clk 0:00:35]}  Ng4 {[%clk 0:00:20]} 19. dxe5 {[%clk 0:00:26]}  Nxe5 {[%clk 0:00:21]} 20. Bxe5 {[%clk 0:00:20]}  Bxe5 {[%clk 0:00:22]} 21. O-O {[%clk 0:00:19]}  Qg7 {[%clk 0:00:20]} 22. Be2 {[%clk 0:00:09]}  Qf6 {[%clk 0:00:19]} 23. Nc4 {[%clk 0:00:05]}  Be6 {[%clk 0:00:18]} 24. Qc2 {[%clk 0:00:05]}  Bxc4 {[%clk 0:00:17]} 25. Qxc4 {[%clk 0:00:05]}  Kg7 {[%clk 0:00:15]} 26. Kg2 {[%clk 0:00:04]}  Qe7 {[%clk 0:00:11]} 27. a5 {[%clk 0:00:04]}  Rxd1 {[%clk 0:00:11]} 28. Rxd1 {[%clk 0:00:04]}  Rd8 {[%clk 0:00:12]} 29. Rxd8 {[%clk 0:00:03]}  Qxd8 {[%clk 0:00:13]} 30. a6 {[%clk 0:00:03]}  bxa6 {[%clk 0:00:12]} 31. bxc6 {[%clk 0:00:02]}  a5 {[%clk 0:00:11]} 32. Qe6 {[%clk 0:00:02]}  Qc7 {[%clk 0:00:11]} 33. Qd7+ {[%clk 0:00:01]}  Kf6 {[%clk 0:00:11]} 34. Bc4 {[%clk 0:00:01]}  Qxd7 {[%clk 0:00:09]} 35. cxd7 {[%clk 0:00:02]}  Ke7 {[%clk 0:00:10]} 36. c6 {[%clk 0:00:03]}  Bc7 {[%clk 0:00:10]} 37. Bb5 {[%clk 0:00:02]}  Kd6 {[%clk 0:00:10]} 38. Kf1 {[%clk 0:00:02]}  Kc5 {[%clk 0:00:10]} 39. Ba4 {[%clk 0:00:03]}  Kb4 {[%clk 0:00:11]} 40. Bd1 {[%clk 0:00:01]}  Kb5 {[%clk 0:00:11]} 0-1


[Site "https://www.chess.com"]

[Event "Titled Tuesday Blitz February 14 Early 2023"]
[White "Jakubowski, Krzysztof"]
[Black "Rose, Felix"]
[WhiteFideId "1112848"]
[BlackFideId "5105722"]
[WhiteElo "2486"]
[BlackElo "2091"]
[Result "1-0"]
[Round "01"]
[TimeControl "180+2"]
[Date "2023.02.15"]
[WhiteClock "0:00:42"]
[BlackClock "0:00:22"]

1. e4 {[%clk 0:02:56]}  e5 {[%clk 0:02:59]} 2. Nf3 {[%clk 0:02:55]}  Nc6 {[%clk 0:03:00]} 3. Bc4 {[%clk 0:02:54]}  Nf6 {[%clk 0:03:00]} 4. Ng5 {[%clk 0:02:54]}  d5 {[%clk 0:03:00]} 5. exd5 {[%clk 0:02:55]}  Na5 {[%clk 0:03:00]} 6. Bb5+ {[%clk 0:02:55]}  c6 {[%clk 0:03:01]} 7. dxc6 {[%clk 0:02:55]}  bxc6 {[%clk 0:03:02]} 8. Bd3 {[%clk 0:02:55]}  Nd5 {[%clk 0:03:00]} 9. h4 {[%clk 0:02:52]}  h6 {[%clk 0:02:55]} 10. Qh5 {[%clk 0:02:50]}  Qc7 {[%clk 0:02:43]} 11. Nxf7 {[%clk 0:02:44]}  Nf6 {[%clk 0:02:37]} 12. Qxe5+ {[%clk 0:02:32]}  Qxe5+ {[%clk 0:02:30]} 13. Nxe5 {[%clk 0:02:33]}  Bd6 {[%clk 0:02:26]} 14. Ng6 {[%clk 0:02:01]}  Rh7 {[%clk 0:02:01]} 15. b3 {[%clk 0:01:52]}  Nb7 {[%clk 0:01:55]} 16. O-O {[%clk 0:01:39]}  Nc5 {[%clk 0:01:55]} 17. Ba3 {[%clk 0:01:26]}  Nxd3 {[%clk 0:01:44]} 18. Bxd6 {[%clk 0:01:22]}  Kf7 {[%clk 0:01:37]} 19. Nf8 {[%clk 0:01:15]}  Rh8 {[%clk 0:01:06]} 20. cxd3 {[%clk 0:01:13]}  Bf5 {[%clk 0:00:59]} 21. Rc1 {[%clk 0:01:07]}  Rc8 {[%clk 0:00:48]} 22. Rc5 {[%clk 0:00:50]}  Bxd3 {[%clk 0:00:43]} 23. Ra5 {[%clk 0:00:49]}  a6 {[%clk 0:00:41]} 24. Nc3 {[%clk 0:00:46]}  Ne8 {[%clk 0:00:41]} 25. Ba3 {[%clk 0:00:46]}  Bb5 {[%clk 0:00:27]} 26. Re1 {[%clk 0:00:43]}  c5 {[%clk 0:00:26]} 27. Nxb5 {[%clk 0:00:42]}  axb5 {[%clk 0:00:24]} 28. Nd7 {[%clk 0:00:42]}  b4 {[%clk 0:00:23]} 29. Ne5+ {[%clk 0:00:42]}  Kf6 {[%clk 0:00:23]} 30. Bb2 {[%clk 0:00:43]}  Kf5 {[%clk 0:00:22]} 31. g4+ {[%clk 0:00:42]}  Kf4 {[%clk 0:00:22]} 32. Ng6+ {[%clk 0:00:42]}  Kxg4 {[%clk 0:00:22]} 33. Nxh8 {[%clk 0:00:42]} 1-0


[Site "https://www.chess.com"]

[Event "Titled Tuesday Blitz February 14 Early 2023"]
[White "Mohamed Anees M"]
[Black "Rios Escobar, Adan"]
[WhiteFideId "35065815"]
[BlackFideId "3403645"]
[WhiteElo "2315"]
[BlackElo "2234"]
[Result "1-0"]
[Round "01"]
[TimeControl "180+2"]
[Date "2023.02.15"]
[WhiteClock "0:00:09"]
[BlackClock "0:00:05"]

1. d4 {[%clk 0:02:59]}  Nf6 {[%clk 0:02:58]} 2. c4 {[%clk 0:02:58]}  g6 {[%clk 0:02:58]} 3. Nc3 {[%clk 0:02:58]}  Bg7 {[%clk 0:02:58]} 4. e4 {[%clk 0:02:57]}  d6 {[%clk 0:02:57]} 5. Be2 {[%clk 0:02:57]}  O-O {[%clk 0:02:53]} 6. Nf3 {[%clk 0:02:57]}  Na6 {[%clk 0:02:51]} 7. O-O {[%clk 0:02:56]}  e5 {[%clk 0:02:51]} 8. d5 {[%clk 0:02:49]}  Nc5 {[%clk 0:02:50]} 9. Qc2 {[%clk 0:02:36]}  a5 {[%clk 0:02:50]} 10. Bg5 {[%clk 0:02:31]}  h6 {[%clk 0:02:49]} 11. Be3 {[%clk 0:02:30]}  b6 {[%clk 0:02:48]} 12. Ne1 {[%clk 0:02:25]}  Ne8 {[%clk 0:02:44]} 13. b3 {[%clk 0:02:13]}  f5 {[%clk 0:02:44]} 14. f3 {[%clk 0:02:14]}  Nf6 {[%clk 0:02:42]} 15. Bxc5 {[%clk 0:01:46]}  bxc5 {[%clk 0:02:40]} 16. exf5 {[%clk 0:01:45]}  gxf5 {[%clk 0:02:40]} 17. Rd1 {[%clk 0:01:41]}  Nh5 {[%clk 0:02:36]} 18. Nd3 {[%clk 0:01:34]}  Qg5 {[%clk 0:02:34]} 19. f4 {[%clk 0:01:31]}  exf4 {[%clk 0:02:30]} 20. Bxh5 {[%clk 0:01:30]}  Qxh5 {[%clk 0:02:25]} 21. Nxf4 {[%clk 0:01:31]}  Qf7 {[%clk 0:02:24]} 22. Rd3 {[%clk 0:01:26]}  Kh7 {[%clk 0:02:07]} 23. Rg3 {[%clk 0:01:02]}  Be5 {[%clk 0:02:04]} 24. Rgf3 {[%clk 0:00:58]}  Bd7 {[%clk 0:01:59]} 25. Nce2 {[%clk 0:00:44]}  a4 {[%clk 0:01:48]} 26. Ng3 {[%clk 0:00:39]}  axb3 {[%clk 0:01:47]} 27. axb3 {[%clk 0:00:40]}  Ra1 {[%clk 0:01:39]} 28. Rxa1 {[%clk 0:00:37]}  Bxa1 {[%clk 0:01:40]} 29. Ne6 {[%clk 0:00:34]}  Bxe6 {[%clk 0:01:37]} 30. dxe6 {[%clk 0:00:35]}  Qxe6 {[%clk 0:01:36]} 31. Nxf5 {[%clk 0:00:24]}  Qe1+ {[%clk 0:01:32]} 32. Rf1 {[%clk 0:00:24]}  Qc3 {[%clk 0:00:28]} 33. Qe4 {[%clk 0:00:22]}  Qe5 {[%clk 0:00:20]} 34. Qb1 {[%clk 0:00:19]}  Kh8 {[%clk 0:00:11]} 35. Nxh6 {[%clk 0:00:09]}  Qe3+ {[%clk 0:00:11]} 36. Kh1 {[%clk 0:00:09]}  Rxf1+ {[%clk 0:00:09]} 37. Qxf1 {[%clk 0:00:09]}  Qxh6 {[%clk 0:00:09]} 38. Qxa1+ {[%clk 0:00:09]}  Kg8 {[%clk 0:00:07]} 39. Qb1 {[%clk 0:00:10]}  Qg5 {[%clk 0:00:04]} 40. Qd1 {[%clk 0:00:10]}  Qe3 {[%clk 0:00:03]} 41. h3 {[%clk 0:00:10]}  Kf8 {[%clk 0:00:03]} 42. Qf3+ {[%clk 0:00:10]}  Qxf3 {[%clk 0:00:03]} 43. gxf3 {[%clk 0:00:10]}  Kf7 {[%clk 0:00:04]} 44. Kg2 {[%clk 0:00:11]}  Kf6 {[%clk 0:00:05]} 45. Kg3 {[%clk 0:00:11]}  Ke5 {[%clk 0:00:05]} 46. h4 {[%clk 0:00:12]}  d5 {[%clk 0:00:05]} 47. cxd5 {[%clk 0:00:11]}  Kxd5 {[%clk 0:00:05]} 48. h5 {[%clk 0:00:12]}  Ke5 {[%clk 0:00:06]} 49. Kg4 {[%clk 0:00:12]}  Kf6 {[%clk 0:00:06]} 50. f4 {[%clk 0:00:12]}  Ke6 {[%clk 0:00:03]} 51. h6 {[%clk 0:00:12]}  Kf6 {[%clk 0:00:03]} 52. Kh5 {[%clk 0:00:12]}  Kf7 {[%clk 0:00:03]} 53. Kg5 {[%clk 0:00:13]}  c6 {[%clk 0:00:03]} 54. f5 {[%clk 0:00:13]}  c4 {[%clk 0:00:04]} 55. bxc4 {[%clk 0:00:13]}  c5 {[%clk 0:00:04]} 56. f6 {[%clk 0:00:13]}  Kg8 {[%clk 0:00:04]} 57. Kg6 {[%clk 0:00:13]}  Kh8 {[%clk 0:00:05]} 58. Kf7 {[%clk 0:00:11]}  Kh7 {[%clk 0:00:05]} 59. Ke7 {[%clk 0:00:11]}  Kg6 {[%clk 0:00:02]} 60. f7 {[%clk 0:00:12]}  Kf5 {[%clk 0:00:03]} 61. f8=Q+ {[%clk 0:00:12]}  Ke4 {[%clk 0:00:04]} 62. h7 {[%clk 0:00:11]}  Kd3 {[%clk 0:00:05]} 63. h8=Q {[%clk 0:00:10]}  Kc2 {[%clk 0:00:06]} 64. Qf3 {[%clk 0:00:10]}  Kb1 {[%clk 0:00:05]} 65. Qh2 {[%clk 0:00:09]}  Kc1 {[%clk 0:00:05]} 66. Qf1# {[%clk 0:00:09]} 1-0


[Site "https://www.chess.com"]

[Event "Titled Tuesday Blitz February 14 Early 2023"]
[White "Fajdetic, Hrvoje"]
[Black "Parkhov, Yair"]
[WhiteFideId "14501945"]
[BlackFideId "2813408"]
[WhiteElo "2151"]
[BlackElo "2505"]
[Result "1/2-1/2"]
[Round "01"]
[TimeControl "180+2"]
[Date "2023.02.15"]
[WhiteClock "0:00:12"]
[BlackClock "0:00:07"]

1. d4 {[%clk 0:02:59]}  Nf6 {[%clk 0:02:22]} 2. Bf4 {[%clk 0:02:58]}  g6 {[%clk 0:02:17]} 3. Nc3 {[%clk 0:02:58]}  Bg7 {[%clk 0:02:13]} 4. e4 {[%clk 0:02:58]}  O-O {[%clk 0:02:14]} 5. Qd2 {[%clk 0:02:58]}  d6 {[%clk 0:02:10]} 6. O-O-O {[%clk 0:02:58]}  c6 {[%clk 0:02:10]} 7. Bh6 {[%clk 0:02:58]}  b5 {[%clk 0:02:09]} 8. f3 {[%clk 0:02:58]}  a5 {[%clk 0:02:05]} 9. h4 {[%clk 0:02:57]}  a4 {[%clk 0:01:40]} 10. h5 {[%clk 0:02:55]}  b4 {[%clk 0:01:40]} 11. Nce2 {[%clk 0:02:55]}  b3 {[%clk 0:01:33]} 12. cxb3 {[%clk 0:02:53]}  axb3 {[%clk 0:01:33]} 13. a3 {[%clk 0:02:53]}  Qa5 {[%clk 0:01:26]} 14. Nc3 {[%clk 0:02:51]}  c5 {[%clk 0:01:10]} 15. Bxg7 {[%clk 0:02:47]}  Kxg7 {[%clk 0:01:10]} 16. hxg6 {[%clk 0:02:47]}  fxg6 {[%clk 0:01:09]} 17. Bc4 {[%clk 0:02:33]}  h5 {[%clk 0:01:06]} 18. e5 {[%clk 0:02:25]}  Nh7 {[%clk 0:00:43]} 19. exd6 {[%clk 0:02:12]}  exd6 {[%clk 0:00:43]} 20. g4 {[%clk 0:01:38]}  cxd4 {[%clk 0:00:42]} 21. Qxd4+ {[%clk 0:01:38]}  Qe5 {[%clk 0:00:42]} 22. Qxd6 {[%clk 0:01:31]}  Qxd6 {[%clk 0:00:40]} 23. Rxd6 {[%clk 0:01:31]}  hxg4 {[%clk 0:00:39]} 24. fxg4 {[%clk 0:01:22]}  Bxg4 {[%clk 0:00:39]} 25. Nge2 {[%clk 0:01:00]}  Nd7 {[%clk 0:00:36]} 26. Rh4 {[%clk 0:00:53]}  Ndf6 {[%clk 0:00:23]} 27. Nf4 {[%clk 0:00:45]}  Rad8 {[%clk 0:00:21]} 28. Rxd8 {[%clk 0:00:43]}  Rxd8 {[%clk 0:00:22]} 29. Rxg4 {[%clk 0:00:43]}  Nxg4 {[%clk 0:00:19]} 30. Ne6+ {[%clk 0:00:43]}  Kf6 {[%clk 0:00:19]} 31. Nxd8 {[%clk 0:00:39]}  Ne5 {[%clk 0:00:20]} 32. Bxb3 {[%clk 0:00:39]}  g5 {[%clk 0:00:21]} 33. Ne4+ {[%clk 0:00:38]}  Kf5 {[%clk 0:00:21]} 34. Nd2 {[%clk 0:00:28]}  Kf4 {[%clk 0:00:20]} 35. Ne6+ {[%clk 0:00:27]}  Ke3 {[%clk 0:00:21]} 36. Nc4+ {[%clk 0:00:27]}  Nxc4 {[%clk 0:00:21]} 37. Bxc4 {[%clk 0:00:27]}  g4 {[%clk 0:00:21]} 38. Bd5 {[%clk 0:00:26]}  Nf6 {[%clk 0:00:21]} 39. Bc6 {[%clk 0:00:25]}  g3 {[%clk 0:00:21]} 40. Ng5 {[%clk 0:00:19]}  Ng4 {[%clk 0:00:20]} 41. a4 {[%clk 0:00:18]}  Ne5 {[%clk 0:00:20]} 42. Bb7 {[%clk 0:00:17]}  Nd3+ {[%clk 0:00:18]} 43. Kc2 {[%clk 0:00:16]}  Nc5 {[%clk 0:00:18]} 44. Bc6 {[%clk 0:00:15]}  Nxa4 {[%clk 0:00:18]} 45. Nh3 {[%clk 0:00:14]}  Nb6 {[%clk 0:00:15]} 46. b4 {[%clk 0:00:14]}  Kd4 {[%clk 0:00:06]} 47. Kb3 {[%clk 0:00:14]}  Nc4 {[%clk 0:00:06]} 48. Nf4 {[%clk 0:00:13]}  Ne5 {[%clk 0:00:05]} 49. Bg2 {[%clk 0:00:13]}  Ke3 {[%clk 0:00:06]} 50. Nd5+ {[%clk 0:00:13]}  Kf2 {[%clk 0:00:06]} 51. Bh3 {[%clk 0:00:13]}  Nd3 {[%clk 0:00:06]} 52. Kc4 {[%clk 0:00:12]}  Nxb4 {[%clk 0:00:06]} 53. Nxb4 {[%clk 0:00:12]}  g2 {[%clk 0:00:07]} 54. Bxg2 {[%clk 0:00:12]}  Kxg2 {[%clk 0:00:07]} 1/2-1/2


[Site "https://www.chess.com"]

[Event "Titled Tuesday Blitz February 14 Early 2023"]
[White "Sadykov, Ramil"]
[Black "Schut, Han"]
[WhiteFideId "24113590"]
[BlackFideId "1005561"]
[WhiteElo "2345"]
[BlackElo "2101"]
[Result "1/2-1/2"]
[Round "01"]
[TimeControl "180+2"]
[Date "2023.02.15"]
[WhiteClock "0:00:06"]
[BlackClock "0:00:13"]

1. d4 {[%clk 0:02:57]}  Nf6 {[%clk 0:02:59]} 2. Nc3 {[%clk 0:02:57]}  d5 {[%clk 0:02:58]} 3. Bf4 {[%clk 0:02:56]}  e6 {[%clk 0:02:57]} 4. e3 {[%clk 0:02:56]}  Bd6 {[%clk 0:02:57]} 5. Nf3 {[%clk 0:02:50]}  a6 {[%clk 0:02:56]} 6. Bd3 {[%clk 0:02:47]}  b5 {[%clk 0:02:50]} 7. O-O {[%clk 0:02:44]}  Bb7 {[%clk 0:02:49]} 8. a4 {[%clk 0:02:41]}  b4 {[%clk 0:02:42]} 9. Ne2 {[%clk 0:02:40]}  Ne4 {[%clk 0:02:42]} 10. c4 {[%clk 0:02:34]}  dxc4 {[%clk 0:02:28]} 11. Bxc4 {[%clk 0:02:33]}  Nd7 {[%clk 0:02:19]} 12. Rc1 {[%clk 0:02:29]}  Ndf6 {[%clk 0:02:07]} 13. Ne5 {[%clk 0:02:26]}  g5 {[%clk 0:01:58]} 14. Bg3 {[%clk 0:02:18]}  h5 {[%clk 0:01:54]} 15. f3 {[%clk 0:02:06]}  Nxg3 {[%clk 0:01:50]} 16. Nxg3 {[%clk 0:02:05]}  h4 {[%clk 0:01:39]} 17. Ne2 {[%clk 0:02:02]}  Bxe5 {[%clk 0:01:19]} 18. dxe5 {[%clk 0:02:01]}  Qxd1 {[%clk 0:01:20]} 19. Rfxd1 {[%clk 0:02:00]}  Nd7 {[%clk 0:01:20]} 20. f4 {[%clk 0:01:54]}  g4 {[%clk 0:01:03]} 21. Kf2 {[%clk 0:01:46]}  Ke7 {[%clk 0:00:47]} 22. Bd3 {[%clk 0:01:36]}  Rac8 {[%clk 0:00:42]} 23. e4 {[%clk 0:01:35]}  c5 {[%clk 0:00:38]} 24. a5 {[%clk 0:01:31]}  c4 {[%clk 0:00:28]} 25. Bxc4 {[%clk 0:01:24]}  Nc5 {[%clk 0:00:25]} 26. Ke3 {[%clk 0:01:21]}  Bxe4 {[%clk 0:00:20]} 27. Bxa6 {[%clk 0:01:12]}  Nxa6 {[%clk 0:00:20]} 28. Kxe4 {[%clk 0:01:11]}  Nc5+ {[%clk 0:00:20]} 29. Ke3 {[%clk 0:01:10]}  Nb3 {[%clk 0:00:19]} 30. Rxc8 {[%clk 0:01:05]}  Rxc8 {[%clk 0:00:20]} 31. a6 {[%clk 0:01:05]}  Ra8 {[%clk 0:00:20]} 32. Rd6 {[%clk 0:01:04]}  Nc5 {[%clk 0:00:20]} 33. Rb6 {[%clk 0:01:01]}  Rxa6 {[%clk 0:00:19]} 34. Rxb4 {[%clk 0:01:00]}  Ra2 {[%clk 0:00:17]} 35. h3 {[%clk 0:00:55]}  gxh3 {[%clk 0:00:15]} 36. gxh3 {[%clk 0:00:56]}  Na4 {[%clk 0:00:15]} 37. Rb7+ {[%clk 0:00:51]}  Kf8 {[%clk 0:00:15]} 38. b3 {[%clk 0:00:44]}  Ra3 {[%clk 0:00:10]} 39. Nd4 {[%clk 0:00:42]}  Nc5 {[%clk 0:00:10]} 40. Rc7 {[%clk 0:00:40]}  Nxb3 {[%clk 0:00:09]} 41. Rc3 {[%clk 0:00:40]}  Nxd4 {[%clk 0:00:06]} 42. Kxd4 {[%clk 0:00:36]}  Rxc3 {[%clk 0:00:05]} 43. Kxc3 {[%clk 0:00:36]}  Kg7 {[%clk 0:00:06]} 44. Kd4 {[%clk 0:00:32]}  Kg6 {[%clk 0:00:07]} 45. Ke4 {[%clk 0:00:32]}  f6 {[%clk 0:00:07]} 46. exf6 {[%clk 0:00:10]}  Kxf6 {[%clk 0:00:08]} 47. Ke3 {[%clk 0:00:10]}  Kf5 {[%clk 0:00:08]} 48. Kf3 {[%clk 0:00:10]}  e5 {[%clk 0:00:08]} 49. fxe5 {[%clk 0:00:11]}  Kxe5 {[%clk 0:00:09]} 50. Kg4 {[%clk 0:00:11]}  Kf6 {[%clk 0:00:09]} 51. Kxh4 {[%clk 0:00:12]}  Kg7 {[%clk 0:00:10]} 52. Kg5 {[%clk 0:00:12]}  Kh7 {[%clk 0:00:10]} 53. Kh5 {[%clk 0:00:12]}  Kg7 {[%clk 0:00:11]} 54. Kg5 {[%clk 0:00:12]}  Kh7 {[%clk 0:00:12]} 55. h4 {[%clk 0:00:13]}  Kg7 {[%clk 0:00:12]} 56. h5 {[%clk 0:00:13]}  Kh7 {[%clk 0:00:13]} 57. h6 {[%clk 0:00:12]}  Kg8 {[%clk 0:00:13]} 58. Kg6 {[%clk 0:00:09]}  Kh8 {[%clk 0:00:13]} 59. h7 {[%clk 0:00:06]} 1/2-1/2


[Site "https://www.chess.com"]

[Event "Titled Tuesday Blitz February 14 Early 2023"]
[White "Koridze, Lile"]
[Black "Danielyan, Vahe"]
[WhiteFideId "13612514"]
[BlackFideId "13304828"]
[WhiteElo "2191"]
[BlackElo "2346"]
[Result "1-0"]
[Round "01"]
[TimeControl "180+2"]
[Date "2023.02.15"]
[WhiteClock "0:00:30"]
[BlackClock "0:01:25"]

1. d4 {[%clk 0:03:00]}  Nf6 {[%clk 0:02:46]} 2. c4 {[%clk 0:02:59]}  g6 {[%clk 0:02:47]} 3. Nc3 {[%clk 0:02:59]}  d6 {[%clk 0:02:47]} 4. e4 {[%clk 0:02:59]}  Bg7 {[%clk 0:02:48]} 5. Nf3 {[%clk 0:02:59]}  O-O {[%clk 0:02:48]} 6. Be2 {[%clk 0:02:59]}  e5 {[%clk 0:02:47]} 7. d5 {[%clk 0:02:59]}  Nbd7 {[%clk 0:02:47]} 8. Be3 {[%clk 0:02:51]}  a5 {[%clk 0:02:48]} 9. Nd2 {[%clk 0:02:47]}  Nc5 {[%clk 0:02:48]} 10. O-O {[%clk 0:02:43]}  b6 {[%clk 0:02:47]} 11. a3 {[%clk 0:02:43]}  Ne8 {[%clk 0:02:42]} 12. b4 {[%clk 0:02:43]}  Nd7 {[%clk 0:02:42]} 13. c5 {[%clk 0:02:04]}  bxc5 {[%clk 0:02:42]} 14. bxc5 {[%clk 0:02:05]}  Nxc5 {[%clk 0:02:42]} 15. Bxc5 {[%clk 0:02:05]}  dxc5 {[%clk 0:02:43]} 16. Na4 {[%clk 0:01:56]}  Nd6 {[%clk 0:02:42]} 17. Nxc5 {[%clk 0:01:56]}  f5 {[%clk 0:02:41]} 18. Rc1 {[%clk 0:01:47]}  Qe7 {[%clk 0:02:34]} 19. Qa4 {[%clk 0:01:34]}  fxe4 {[%clk 0:02:29]} 20. Ndxe4 {[%clk 0:01:34]}  Rf4 {[%clk 0:02:27]} 21. Qc6 {[%clk 0:00:50]}  Rb8 {[%clk 0:02:20]} 22. Nxd6 {[%clk 0:00:49]}  cxd6 {[%clk 0:02:19]} 23. Ne6 {[%clk 0:00:47]}  Bb7 {[%clk 0:02:08]} 24. Qb5 {[%clk 0:00:38]}  Rc4 {[%clk 0:01:25]} 25. Rxc4 {[%clk 0:00:30]} 1-0


[Site "https://www.chess.com"]